bitfinex-derivatives/quotes_BTCF0:USTF0_20250713
["timestamp","ask_amount","ask_price","bid_price","bid_amount"]
[1752368406753,1.00874957,117410.0,117400.0,0.2749725]
[1752368406956,0.71914957,117410.0,117400.0,0.2749725]
[1752368407252,0.99346551,117410.0,117400.0,0.5949725]
[1752368407553,1.20349004,117410.0,117400.0,0.5949725]
[1752368407753,1.35426551,117410.0,117400.0,0.5949725]
[1752368408149,1.35426551,117410.0,117400.0,0.6349725]
[1752368408955,1.35426551,117410.0,117400.0,0.2749725]
[1752368413161,0.99346551,117410.0,117400.0,0.2749725]
[1752368414460,0.99346494,117410.0,117400.0,0.2749725]
[1752368415263,0.70382494,117410.0,117400.0,0.2749725]
[1752368415463,0.99342494,117410.0,117400.0,0.2749725]
[1752368425568,0.38276507,117410.0,117400.0,0.57652344]
[1752368425867,0.84260957,117410.0,117400.0,0.42574797]
[1752368427072,0.99338504,117410.0,117400.0,0.42574797]
[1752368428169,0.99338504,117410.0,117400.0,0.78654797]
[1752368431166,0.84260957,117410.0,117400.0,0.78654797]
[1752368431367,0.99338504,117410.0,117400.0,0.78654797]
[1752368437071,0.9320463,117410.0,117400.0,0.6357725]
[1752368442080,1.0087091,117410.0,117400.0,0.6357725]
[1752368442779,1.0087091,117410.0,117400.0,0.2749725]
[1752368443076,1.0087091,117410.0,117400.0,0.6357725]
[1752368444783,1.0086691,117410.0,117400.0,0.6357725]
[1752368447189,0.99332354,117410.0,117400.0,0.6357725]
[1752368447379,1.35412354,117410.0,117400.0,0.2749725]
[1752368460392,0.99332354,117410.0,117400.0,0.2749725]
[1752368460593,1.35412354,117410.0,117400.0,0.2749725]
[1752368465698,1.06460354,117410.0,117400.0,0.2749725]
[1752368465898,1.35412354,117410.0,117400.0,0.2749725]
[1752368466892,0.99332354,117410.0,117400.0,0.2749725]
[1752368467098,1.35412354,117410.0,117400.0,0.2749725]
[1752368473304,1.35412354,117410.0,117400.0,0.1720025]
[1752368473305,1.50489901,117410.0,117400.0,0.1720025]
[1752368473512,1.50489901,117410.0,117400.0,0.0017035]
[1752368473805,1.50489901,117410.0,117400.0,0.1720025]
[1752368478008,1.50489901,117410.0,117400.0,0.2425525]
[1752368478209,1.50489901,117410.0,117400.0,0.1948225]
[1752368478904,1.50489901,117410.0,117400.0,0.1720025]
[1752368487116,1.52024457,117410.0,117400.0,0.1720025]
[1752368487817,1.15944457,117410.0,117400.0,0.1720025]
[1752368488018,1.52024457,117410.0,117400.0,0.1720025]
[1752368496021,1.52024457,117410.0,117400.0,0.1953925]
[1752368497022,1.58159412,117410.0,117400.0,0.1953925]
[1752368497218,1.50493132,117410.0,117400.0,0.1953925]
[1752368502124,1.14413132,117410.0,117400.0,0.1953925]
[1752368502326,1.50493132,117410.0,117400.0,0.1953925]
[1752368509329,1.50493132,117410.0,117400.0,0.1720025]
[1752368509630,1.44358177,117410.0,117400.0,0.1720025]
[1752368512530,1.59435724,117410.0,117400.0,0.0017035]
[1752368512833,0.2724936,117390.0,117380.0,0.3571079]
[1752368513130,1.30281509,117390.0,117380.0,0.3569079]
[1752368514732,1.30281509,117390.0,117380.0,0.36530888]
[1752368514932,1.15203962,117390.0,117380.0,0.36530888]
[1752368515132,0.79123962,117390.0,117380.0,0.36530888]
[1752368516426,0.7298854,117390.0,117380.0,0.36530888]
[1752368516733,0.79123962,117390.0,117380.0,0.36530888]
[1752368516936,0.7298854,117390.0,117380.0,0.36530888]
[1752368517134,0.79123962,117390.0,117380.0,0.36530888]
[1752368517327,0.7298854,117390.0,117380.0,0.36530888]
[1752368522640,0.57910993,117390.0,117380.0,0.36530888]
[1752368522837,0.7298854,117390.0,117380.0,0.36530888]
[1752368528539,0.57910993,117390.0,117380.0,0.36530888]
[1752368528741,0.7298854,117390.0,117380.0,0.36530888]
[1752368529939,0.57910993,117390.0,117380.0,0.36530888]
[1752368530140,0.7298854,117390.0,117380.0,0.36530888]
[1752368537047,0.79123962,117390.0,117380.0,0.36530888]
[1752368539258,0.7298854,117390.0,117380.0,0.36530888]
[1752368541251,0.8065482,117390.0,117380.0,0.36530888]
[1752368542650,0.65577273,117390.0,117380.0,0.36530888]
[1752368542852,0.6363146,117390.0,117380.0,1.02765982]
[1752368543052,0.04769633,117390.0,117380.0,1.02765982]
[1752368543352,0.38159417,117390.0,117380.0,1.02765982]
[1752368543552,0.3680905,117390.0,117380.0,1.02765982]
[1752368543752,0.0784505,117390.0,117380.0,1.02765982]
[1752368544047,0.30673633,117390.0,117380.0,1.02765982]
[1752368545656,0.01709633,117390.0,117380.0,1.19803582]
[1752368545853,0.41391713,117400.0,117390.0,0.2261436]
[1752368546055,0.43106407,117400.0,117390.0,0.78766907]
[1752368546955,0.43106407,117400.0,117390.0,0.79166907]
[1752368547151,0.3697099,117400.0,117390.0,0.79166907]
[1752368547344,0.3999599,117400.0,117390.0,0.79166907]
[1752368548858,0.4240199,117400.0,117390.0,0.79166907]
[1752368549946,0.4240199,117400.0,117390.0,0.6408936]
[1752368550154,0.4240199,117400.0,117390.0,0.79166907]
[1752368552958,0.3999599,117400.0,117390.0,0.79166907]
[1752368553158,0.0632799,117400.0,117390.0,0.79166907]
[1752368553352,0.0330299,117400.0,117390.0,0.94244454]
[1752368553748,0.0330299,117400.0,117390.0,1.52192454]
[1752368553950,0.01714694,117400.0,117390.0,1.52192454]
[1752368554155,0.49172,117410.0,117400.0,0.21984681]
[1752368554356,0.202,117410.0,117400.0,0.95607775]
[1752368556156,0.202,117410.0,117400.0,0.95807775]
[1752368558859,0.202,117410.0,117400.0,1.31887775]
[1752368561158,0.202,117410.0,117400.0,1.48922975]
[1752368563665,0.202,117410.0,117400.0,1.31887775]
[1752368566070,0.21901854,117410.0,117400.0,1.31887775]
[1752368567165,0.21901854,117410.0,117400.0,1.46965322]
[1752368567367,0.08011,117430.0,117420.0,0.2727901]
[1752368567569,0.03125,117430.0,117420.0,0.93514104]
[1752368567770,0.03125,117430.0,117420.0,1.29594104]
[1752368571369,0.08989718,117440.0,117420.0,1.12567094]
[1752368571570,0.08011,117440.0,117430.0,0.78435107]
[1752368573375,0.03125,117440.0,117430.0,0.78435107]
[1752368574076,0.71900257,117450.0,117440.0,0.2026611]
[1752368574277,0.71900257,117450.0,117440.0,0.78433657]
[1752368575174,0.71900257,117450.0,117440.0,0.6335611]
[1752368576480,0.71900257,117450.0,117440.0,0.6418808]
[1752368577172,0.79566537,117450.0,117440.0,0.6418808]
[1752368577772,0.1587728,117450.0,117440.0,0.81073717]
[1752368577972,0.002,117450.0,117440.0,0.96151264]
[1752368578171,0.03325,117450.0,117440.0,0.96151264]
[1752368578672,0.002,117450.0,117440.0,0.96151264]
[1752368579476,0.01889403,117450.0,117440.0,0.96151264]
[1752368579670,0.01889403,117450.0,117440.0,0.96351264]
[1752368583276,0.05014403,117450.0,117440.0,0.96351264]
[1752368583574,0.09900403,117450.0,117440.0,0.96351264]
[1752368584272,0.05014403,117450.0,117440.0,0.96351264]
[1752368587675,0.01889403,117450.0,117440.0,0.96351264]
[1752368593585,0.01890218,117450.0,117440.0,1.32431264]
[1752368596786,0.002,117450.0,117440.0,1.32431264]
[1752368598886,0.002,117450.0,117440.0,1.0227617]
[1752368599181,0.002,117450.0,117440.0,1.32431264]
[1752368604893,0.002,117450.0,117440.0,1.76628811]
[1752368604894,1e-07,117450.0,117440.0,1.76628811]
[1752368605096,0.06109989,117470.0,117460.0,0.2724421]
[1752368605290,0.06109989,117470.0,117460.0,0.57399304]
[1752368605591,0.16624989,117480.0,117470.0,0.1701976]
[1752368605796,0.45748989,117480.0,117470.0,0.78400307]
[1752368605992,0.14170989,117480.0,117470.0,0.78400307]
[1752368606188,0.38461989,117480.0,117470.0,0.78400307]
[1752368606785,0.09337989,117480.0,117470.0,0.78400307]
[1752368607999,0.09537989,117480.0,117470.0,0.78400307]
[1752368609198,0.03428,117480.0,117470.0,0.78400307]
[1752368609398,0.08261,117480.0,117470.0,0.78400307]
[1752368609796,0.23338547,117480.0,117470.0,0.78400307]
[1752368610192,0.08261,117480.0,117470.0,0.78400307]
[1752368610395,0.2527932,117480.0,117470.0,0.78400307]
[1752368610695,0.2773332,117480.0,117470.0,0.78400307]
[1752368610897,0.48920856,117480.0,117470.0,0.78400307]
[1752368611394,0.42810867,117480.0,117470.0,0.78400307]
[1752368611600,0.48920856,117480.0,117470.0,0.78400307]
[1752368611800,0.42810867,117480.0,117470.0,0.78400307]
[1752368613097,0.25792547,117480.0,117470.0,0.78400307]
[1752368614098,0.42810867,117480.0,117470.0,0.78400307]
[1752368614404,0.25792547,117480.0,117470.0,0.78400307]
[1752368616101,0.42810867,117480.0,117470.0,0.78400307]
[1752368616601,0.25792547,117480.0,117470.0,0.78400307]
[1752368616903,0.42810867,117480.0,117470.0,0.78400307]
[1752368617103,0.48920856,117480.0,117470.0,0.78400307]
[1752368619206,0.16824989,117480.0,117470.0,0.78400307]
[1752368619399,0.31902536,117480.0,117470.0,0.78400307]
[1752368622404,0.31902536,117480.0,117470.0,0.42320307]
[1752368622601,0.31902536,117480.0,117470.0,0.78400307]
[1752368623200,0.48920856,117480.0,117470.0,0.78400307]
[1752368623394,0.48920856,117480.0,117470.0,0.2724276]
[1752368623395,1.00078403,117480.0,117470.0,0.2724276]
[1752368623599,1.00078403,117480.0,117470.0,0.2724277]
[1752368624108,0.93968414,117480.0,117470.0,0.2724277]
[1752368624508,0.93968414,117480.0,117470.0,0.2267477]
[1752368624807,0.83912442,117480.0,117470.0,0.2267477]
[1752368625806,0.90032814,117480.0,117470.0,0.2267477]
[1752368626009,0.83912442,117480.0,117470.0,0.2740277]
[1752368626908,0.90033066,117480.0,117470.0,0.2740277]
[1752368627209,0.91578722,117480.0,117470.0,0.2740277]
[1752368631412,0.83912442,117480.0,117470.0,0.2740277]
[1752368633112,0.94619371,117480.0,117470.0,0.2740277]
[1752368634411,0.83912442,117480.0,117470.0,0.2740277]
[1752368634711,0.91567056,117480.0,117470.0,0.2740277]
[1752368635314,0.83912442,117480.0,117470.0,0.2740277]
[1752368635814,0.91567709,117480.0,117470.0,0.2740277]
[1752368636017,0.83912442,117480.0,117470.0,0.2740277]
[1752368636219,0.91567595,117480.0,117470.0,0.2740277]
[1752368641619,1.20627595,117480.0,117470.0,0.2740277]
[1752368644825,1.30671819,117480.0,117470.0,0.42474443]
[1752368646633,0.64436473,117480.0,117470.0,0.42474443]
[1752368646827,0.18370153,117480.0,117470.0,0.78554443]
[1752368647026,0.06325068,117480.0,117470.0,0.93626116]
[1752368647222,0.29256,117480.0,117470.0,0.93626116]
[1752368648327,0.29256,117480.0,117470.0,0.78554443]
[1752368648535,0.35381068,117480.0,117470.0,0.78554443]
[1752368650435,0.06325068,117480.0,117470.0,0.78554443]
[1752368650634,0.35377068,117480.0,117470.0,0.78554443]
[1752368651037,0.35377068,117480.0,117470.0,0.6348277]
[1752368651235,0.35377068,117480.0,117470.0,0.78554443]
[1752368651737,0.35377068,117480.0,117470.0,0.6348277]
[1752368651936,0.35377068,117480.0,117470.0,0.78554443]
[1752368654941,0.06325068,117480.0,117470.0,0.78554443]
[1752368655140,0.35361068,117480.0,117470.0,0.78554443]
[1752368655544,0.06325068,117480.0,117470.0,0.78554443]
[1752368655729,0.35361068,117480.0,117470.0,0.78554443]
[1752368656930,0.06325068,117480.0,117470.0,0.78554443]
[1752368657136,0.35357068,117480.0,117470.0,0.78554443]
[1752368657935,0.35357068,117480.0,117470.0,0.6348277]
[1752368658137,0.38662068,117480.0,117470.0,0.78554443]
[1752368658336,0.43633068,117480.0,117470.0,0.78554443]
[1752368659443,0.14601068,117480.0,117470.0,0.78554443]
[1752368659643,0.43653068,117480.0,117470.0,0.78554443]
[1752368660441,0.60671388,117480.0,117470.0,0.78554443]
[1752368660642,0.39924,117480.0,117470.0,0.78554443]
[1752368661647,0.5694232,117480.0,117470.0,0.78554443]
[1752368662147,0.39924,117480.0,117470.0,0.78554443]
[1752368662541,0.39924,117480.0,117470.0,0.42474443]
[1752368662743,0.39924,117480.0,117470.0,0.78554443]
[1752368663946,0.5694232,117480.0,117470.0,0.78554443]
[1752368664247,0.39924,117480.0,117470.0,0.78554443]
[1752368664643,0.46049068,117480.0,117470.0,0.78554443]
[1752368667145,0.64597473,117480.0,117470.0,0.78554443]
[1752368667345,0.79669146,117480.0,117470.0,0.78554443]
[1752368668142,0.64597473,117480.0,117470.0,0.78554443]
[1752368668445,0.79669146,117480.0,117470.0,0.78554443]
[1752368669141,0.64597473,117480.0,117470.0,0.78554443]
[1752368669346,0.79669146,117480.0,117470.0,0.78554443]
[1752368671449,0.47579153,117480.0,117470.0,0.78554443]
[1752368671644,0.79669146,117480.0,117470.0,0.78554443]
[1752368672448,0.64597473,117480.0,117470.0,0.78554443]
[1752368672645,0.79669146,117480.0,117470.0,0.78554443]
[1752368673648,0.64597473,117480.0,117470.0,0.78554443]
[1752368675951,0.79669146,117480.0,117470.0,0.42474443]
[1752368676146,1.23165666,117480.0,117470.0,0.2018077]
[1752368676354,0.97792595,117480.0,117470.0,0.2106158]
[1752368676553,1.33872595,117480.0,117470.0,0.2106158]
[1752368677555,1.23165666,117480.0,117470.0,0.2106158]
[1752368677852,0.9302232,117480.0,117470.0,0.2106158]
[1752368678053,1.30828062,117480.0,117470.0,0.2106158]
[1752368678354,1.23165666,117480.0,117470.0,0.2106158]
[1752368680355,1.30828062,117480.0,117470.0,0.2106158]
[1752368681155,1.23165666,117480.0,117470.0,0.2106158]
[1752368681357,1.30828062,117480.0,117470.0,0.2106158]
[1752368687263,1.29292289,117480.0,117470.0,0.2106158]
[1752368688259,1.29292289,117480.0,117470.0,0.1878358]
[1752368688465,1.23165666,117480.0,117470.0,0.1701977]
[1752368689167,1.23165666,117480.0,117470.0,0.1929777]
[1752368690866,0.94113666,117480.0,117470.0,0.1929777]
[1752368691166,1.23117666,117480.0,117470.0,0.1929777]
[1752368698591,0.94113666,117480.0,117470.0,0.1929777]
[1752368698891,1.23101666,117480.0,117470.0,0.1929777]
[1752368700388,0.94113666,117480.0,117470.0,0.1929777]
[1752368700586,1.23097666,117480.0,117470.0,0.1929777]
[1752368701393,1.23097666,117480.0,117470.0,0.34369443]
[1752368701595,1.29224614,117480.0,117470.0,0.34369443]
[1752368702794,1.23097666,117480.0,117470.0,0.34369443]
[1752368704691,0.42961993,117480.0,117470.0,0.42187443]
[1752368704891,0.78074487,117480.0,117470.0,0.78267443]
[1752368705197,0.42961993,117480.0,117470.0,0.6319577]
[1752368705399,1.23097666,117480.0,117470.0,0.42187443]
[1752368705993,1.23097666,117480.0,117470.0,0.2711577]
[1752368706197,1.08025993,117480.0,117470.0,0.42187443]
[1752368706597,1.23097666,117480.0,117470.0,0.42187443]
[1752368707399,1.30760062,117480.0,117470.0,0.42187443]
[1752368707701,1.00616716,117480.0,117470.0,0.42187443]
[1752368707892,1.30760062,117480.0,117470.0,0.42187443]
[1752368709501,0.94680062,117480.0,117470.0,0.42187443]
[1752368709698,1.30760062,117480.0,117470.0,0.42187443]
[1752368713705,1.30760062,117480.0,117470.0,0.2711577]
[1752368713908,1.30760062,117480.0,117470.0,0.42187443]
[1752368716808,1.32463936,117480.0,117470.0,0.42187443]
[1752368717107,1.2480154,117480.0,117470.0,0.35289311]
[1752368717311,1.35508469,117480.0,117470.0,0.35289311]
[1752368718010,1.33804595,117480.0,117470.0,0.35289311]
[1752368719611,0.97724595,117480.0,117470.0,0.35289311]
[1752368720212,0.21578929,117480.0,117470.0,0.35289311]
[1752368720409,0.50614929,117480.0,117470.0,0.71369311]
[1752368720712,0.39908,117480.0,117470.0,1.02369311]
[1752368720913,0.39908,117480.0,117470.0,0.71369311]
[1752368721113,0.39908,117480.0,117470.0,1.02369311]
[1752368721413,0.10872,117480.0,117470.0,1.02369311]
[1752368721615,0.5691832,117480.0,117470.0,0.87297638]
[1752368721808,0.5691832,117480.0,117470.0,1.02369311]
[1752368722203,0.5691832,117480.0,117470.0,1.04369311]
[1752368722407,0.71989993,117480.0,117470.0,1.04369311]
[1752368723212,0.71989993,117480.0,117470.0,1.06369311]
[1752368723407,0.79653193,117480.0,117470.0,1.06369311]
[1752368724114,0.79653193,117480.0,117470.0,0.71369311]
[1752368725713,0.79653193,117480.0,117470.0,0.56297638]
[1752368726011,0.79653193,117480.0,117470.0,0.71369311]
[1752368727113,0.85780325,117480.0,117470.0,0.71369311]
[1752368727308,0.78117125,117480.0,117470.0,0.71369311]
[1752368735719,0.63045452,117480.0,117470.0,0.71369311]
[1752368735920,0.78117125,117480.0,117470.0,0.71369311]
[1752368741125,0.63045452,117480.0,117470.0,0.71369311]
[1752368741321,0.46027132,117480.0,117470.0,0.71369311]
[1752368741521,0.16999132,117480.0,117470.0,0.71369311]
[1752368741721,0.14603132,117480.0,117470.0,0.71369311]
[1752368741923,0.43619132,117480.0,117470.0,0.71369311]
[1752368742120,0.14603132,117480.0,117470.0,0.71369311]
[1752368742419,0.43619132,117480.0,117470.0,0.71369311]
[1752368745028,0.46083132,117480.0,117470.0,0.71369311]
[1752368748229,0.14603132,117480.0,117470.0,0.86440984]
[1752368748529,0.06327132,117480.0,117470.0,0.86440984]
[1752368749121,0.002,117480.0,117470.0,1.03465784]
[1752368751630,0.002,117480.0,117470.0,0.86440984]
[1752368752626,0.002,117480.0,117470.0,0.56297638]
[1752368752827,0.002,117480.0,117470.0,1.15448984]
[1752368754033,0.002,117480.0,117470.0,1.44568984]
[1752368755833,0.002,117480.0,117470.0,1.14425638]
[1752368756033,0.002,117480.0,117470.0,1.44564984]
[1752368760328,0.002,117480.0,117470.0,1.15560984]
[1752368760640,0.002,117480.0,117470.0,1.44556984]
[1752368777449,0.002,117480.0,117470.0,1.80636984]
[1752368780152,0.10324,117480.0,117470.0,1.80624984]
[1752368780353,0.10324,117480.0,117470.0,1.83683647]
[1752368780550,0.10324,117480.0,117470.0,1.54563647]
[1752368780754,0.10324,117480.0,117470.0,1.51504984]
[1752368781256,0.25395673,117480.0,117470.0,1.36433311]
[1752368781656,0.10324,117480.0,117470.0,1.07449311]
[1752368782259,0.12025249,117480.0,117470.0,1.07449311]
[1752368783955,0.29043569,117480.0,117470.0,1.07449311]
[1752368784262,0.12025249,117480.0,117470.0,1.07449311]
[1752368785163,0.10324,117480.0,117470.0,1.07449311]
[1752368785362,0.12024799,117480.0,117470.0,1.07449311]
[1752368786162,0.12024799,117480.0,117470.0,0.92377638]
[1752368786364,0.12024799,117480.0,117470.0,1.07449311]
[1752368786964,0.12024704,117480.0,117470.0,1.07449311]
[1752368800367,0.12024704,117480.0,117470.0,0.71369311]
[1752368802277,0.09530704,117480.0,117470.0,0.71369311]
[1752368802478,0.09530704,117480.0,117470.0,0.86440984]
[1752368805986,0.09530704,117480.0,117470.0,0.56297638]
[1752368806282,0.09530704,117480.0,117470.0,0.86440984]
[1752368807783,0.09530704,117480.0,117470.0,0.71369311]
[1752368809781,0.28912024,117480.0,117470.0,0.56297638]
[1752368809981,0.65182502,117480.0,117470.0,0.20217638]
[1752368810585,0.65182502,117480.0,117470.0,0.15494638]
[1752368815495,0.6671857,117480.0,117470.0,0.15494638]
[1752368817290,0.65177272,117480.0,117470.0,0.15494638]
[1752368821691,0.65177272,117480.0,117470.0,0.20262638]
[1752368822088,0.65177272,117480.0,117470.0,0.35334311]
[1752368822693,0.65177272,117480.0,117470.0,0.20262638]
[1752368833393,1.01257272,117480.0,117470.0,0.20262638]
[1752368838202,1.30245272,117480.0,117470.0,0.20262638]
[1752368838796,0.94165272,117480.0,117470.0,0.20262638]
[1752368838996,1.30245272,117480.0,117470.0,0.20262638]
[1752368840107,1.2412337,117480.0,117470.0,0.20262638]
[1752368841405,1.2412337,117480.0,117470.0,0.15494638]
[1752368844205,1.3178657,117480.0,117470.0,0.15494638]
[1752368848213,1.01643224,117480.0,117470.0,0.15494638]
[1752368848408,1.3178657,117480.0,117470.0,0.15494638]
[1752368849416,1.01643224,117480.0,117470.0,0.15494638]
[1752368849715,1.3178657,117480.0,117470.0,0.15494638]
[1752368850418,1.3178657,117480.0,117470.0,0.20440638]
[1752368850919,1.3178657,117480.0,117470.0,0.35512311]
[1752368852817,1.31854907,117480.0,117470.0,0.35512311]
[1752368853118,0.95774907,117480.0,117470.0,0.35512311]
[1752368853320,1.31854907,117480.0,117470.0,0.35512311]
[1752368854219,0.95774907,117480.0,117470.0,0.35512311]
[1752368854421,1.31854907,117480.0,117470.0,0.35512311]
[1752368857221,1.31854907,117480.0,117470.0,0.25390673]
[1752368857421,1.24191707,117480.0,117470.0,0.42410443]
[1752368862429,1.21828707,117480.0,117470.0,0.40132443]
[1752368864624,1.24111707,117480.0,117470.0,0.42600443]
[1752368865331,0.95123707,117480.0,117470.0,0.42600443]
[1752368865531,1.24111707,117480.0,117470.0,0.42600443]
[1752368866131,0.88031707,117480.0,117470.0,0.42600443]
[1752368866431,1.24111707,117480.0,117470.0,0.42600443]
[1752368867332,1.3177211,117480.0,117470.0,0.42600443]
[1752368873936,1.01628764,117480.0,117470.0,0.42600443]
[1752368874137,1.3177211,117480.0,117470.0,0.42600443]
[1752368875733,1.3177211,117480.0,117470.0,0.2752877]
[1752368875936,1.3177211,117480.0,117470.0,0.42600443]
[1752368876138,1.0278411,117480.0,117470.0,0.42600443]
[1752368876335,1.3176811,117480.0,117470.0,0.42600443]
[1752368877538,0.9568811,117480.0,117470.0,0.42600443]
[1752368877733,0.9568811,117480.0,117470.0,0.2752877]
[1752368877938,1.3176811,117480.0,117470.0,0.42600443]
[1752368880636,1.3176811,117480.0,117470.0,0.2752877]
[1752368880838,1.3176811,117480.0,117470.0,0.42600443]
[1752368882036,1.3176811,117480.0,117470.0,0.2752877]
[1752368885242,1.3176811,117480.0,117470.0,0.42600443]
[1752368885946,1.3176811,117480.0,117470.0,0.2752877]
[1752368891156,0.9568811,117480.0,117470.0,0.2752877]
[1752368891354,1.3176811,117480.0,117470.0,0.2752877]
[1752368896463,1.2948511,117480.0,117470.0,0.2506077]
[1752368896659,1.2948511,117480.0,117470.0,0.2011477]
[1752368897262,1.2948511,117480.0,117470.0,0.13216649]
[1752368897456,1.21824707,117480.0,117470.0,0.13216649]
[1752368898461,1.20055666,117480.0,117470.0,0.13216649]
[1752368898657,1.22335666,117480.0,117470.0,0.15631649]
[1752368905161,1.29999978,117480.0,117470.0,0.15631649]
[1752368905458,1.29999978,117480.0,117470.0,0.30703322]
[1752368907070,0.93919978,117480.0,117470.0,0.30703322]
[1752368907270,0.86255666,117480.0,117470.0,0.30703322]
[1752368911477,1.22335666,117480.0,117470.0,0.30703322]
[1752368912079,1.22335666,117480.0,117470.0,0.15631649]
[1752368912478,1.22335666,117480.0,117470.0,0.30703322]
[1752368917283,1.22335666,117480.0,117470.0,0.15631649]
[1752368917583,1.22335666,117480.0,117470.0,0.30703322]
[1752368918781,1.22335666,117480.0,117470.0,0.15631649]
[1752368918981,1.22335666,117480.0,117470.0,0.30703322]
[1752368919486,0.9219232,117480.0,117470.0,0.30703322]
[1752368919677,1.22335666,117480.0,117470.0,0.30703322]
[1752368922486,1.20055666,117480.0,117470.0,0.28288322]
[1752368922886,1.20055666,117480.0,117470.0,0.13216649]
[1752368923686,1.20055666,117480.0,117470.0,0.28288322]
[1752368924488,1.22345666,117480.0,117470.0,0.30580322]
[1752368925988,1.22345666,117480.0,117470.0,0.15508649]
[1752368927291,0.86265666,117480.0,117470.0,0.15508649]
[1752368928288,1.22345666,117480.0,117470.0,0.15508649]
[1752368931188,0.86265666,117480.0,117470.0,0.15508649]
[1752368931383,1.22345666,117480.0,117470.0,0.15508649]
[1752368933896,0.2729576,117470.0,117460.0,0.2356698]
[1752368934085,0.2252421,117460.0,117450.0,0.29591246]
[1752368934285,0.86416556,117460.0,117450.0,0.29591246]
[1752368935292,0.86416556,117460.0,117450.0,0.27299246]
[1752368936393,0.86416556,117460.0,117450.0,0.28299246]
[1752368936891,0.86416556,117460.0,117450.0,0.28399246]
[1752368938093,1.22496556,117460.0,117450.0,0.28399246]
[1752368938391,1.22496556,117460.0,117450.0,0.2663236]
[1752368938692,1.22496556,117460.0,117450.0,0.1712151]
[1752368939692,1.29241784,117460.0,117450.0,0.1712151]
[1752368943395,1.3537161,117460.0,117450.0,0.1712151]
[1752368945194,1.29241784,117460.0,117450.0,0.1712151]
[1752368945595,1.3537161,117460.0,117450.0,0.1712151]
[1752368952003,1.3537161,117460.0,117450.0,0.001]
[1752368953097,1.3537161,117460.0,117450.0,0.1712266]
[1752368957107,1.37073584,117460.0,117450.0,0.1712266]
[1752368965312,1.30943758,117460.0,117450.0,0.1712266]
[1752368967311,1.3860807,117460.0,117450.0,0.1712266]
[1752368967905,1.30943758,117460.0,117450.0,0.1712266]
[1752368971218,1.37070372,117460.0,117450.0,0.1712266]
[1752368972417,1.00990372,117460.0,117450.0,0.1712266]
[1752368972627,1.37070372,117460.0,117450.0,0.1712266]
[1752368972927,1.30943758,117460.0,117450.0,0.1712266]
[1752368973124,1.37070515,117460.0,117450.0,0.1712266]
[1752368975023,1.30943758,117460.0,117450.0,0.1712266]
[1752368976330,0.94863758,117460.0,117450.0,0.1712266]
[1752368976530,1.30943758,117460.0,117450.0,0.1712266]
[1752368977726,1.3860807,117460.0,117450.0,0.1712266]
[1752368979232,1.0252807,117460.0,117450.0,0.1712266]
[1752368979433,1.3860807,117460.0,117450.0,0.1712266]
[1752368979638,1.3860807,117460.0,117450.0,0.1941066]
[1752368984142,1.0252807,117460.0,117450.0,0.1941066]
[1752368984644,1.3860807,117460.0,117450.0,0.1941066]
[1752368985246,1.0252807,117460.0,117450.0,0.1941066]
[1752368985542,1.3860807,117460.0,117450.0,0.1941066]
[1752368989443,1.0252807,117460.0,117450.0,0.1941066]
[1752368989644,1.3860807,117460.0,117450.0,0.1941066]
[1752368990339,1.3862407,117460.0,117450.0,0.1712266]
[1752368995249,1.53695743,117460.0,117450.0,0.001]
[1752368996747,1.08480724,117460.0,117450.0,0.001]
[1752368996947,1.53695743,117460.0,117450.0,0.001]
[1752368997348,1.53695743,117460.0,117450.0,7.255e-05]
[1752368997954,1.5673836,117460.0,117450.0,7.255e-05]
[1752368999252,1.5673836,117460.0,117440.0,0.00170292]
[1752368999253,0.57638006,117450.0,117440.0,0.00170292]
[1752368999450,1.04694284,117450.0,117440.0,0.00170292]
[1752368999652,1.04694284,117450.0,117420.0,0.1933404]
[1752368999653,0.2020656,117430.0,117420.0,0.1933404]
[1752368999952,1.15469544,117430.0,117420.0,0.1931404]
[1752369000752,1.15469544,117430.0,117420.0,0.1931501]
[1752369002453,1.15469544,117430.0,117420.0,0.1971501]
[1752369002753,1.09339207,117430.0,117420.0,0.1971501]
[1752369003249,1.17002128,117430.0,117420.0,0.1971501]
[1752369003554,1.17002128,117430.0,117420.0,0.2282101]
[1752369005453,1.09339207,117430.0,117420.0,0.2282101]
[1752369006655,1.09339207,117430.0,117420.0,0.2262101]
[1752369009356,0.73259207,117430.0,117420.0,0.2262101]
[1752369009548,1.09339207,117430.0,117420.0,0.2262101]
[1752369011550,0.94267534,117430.0,117420.0,0.2262101]
[1752369011755,1.09339207,117430.0,117420.0,0.2262101]
[1752369012755,1.10986294,117430.0,117420.0,0.2262101]
[1752369015959,1.10984959,117430.0,117420.0,0.2262101]
[1752369016560,0.74904959,117430.0,117420.0,0.2262101]
[1752369016758,1.10984959,117430.0,117420.0,0.2262101]
[1752369017963,1.10984959,117430.0,117420.0,0.37692683]
[1752369021058,0.95913286,117430.0,117420.0,0.37692683]
[1752369021259,1.10984959,117430.0,117420.0,0.37692683]
[1752369021462,0.74904959,117430.0,117420.0,0.37692683]
[1752369021763,0.59833286,117430.0,117420.0,0.37692683]
[1752369021961,0.74904959,117430.0,117420.0,0.37692683]
[1752369022159,0.74904959,117430.0,117420.0,0.2262101]
[1752369029366,0.81022404,117430.0,117420.0,0.2262101]
[1752369029664,0.74904959,117430.0,117420.0,0.2262101]
[1752369029865,0.81022404,117430.0,117420.0,0.2262101]
[1752369034768,1.17102404,117430.0,117420.0,0.2262101]
[1752369035573,1.17102404,117430.0,117420.0,0.1951501]
[1752369036466,1.17102404,117430.0,117420.0,0.1722701]
[1752369037073,1.32174077,117430.0,117420.0,0.1722701]
[1752369037273,1.26056632,117430.0,117420.0,0.1722701]
[1752369037470,1.33719553,117430.0,117420.0,0.1722701]
[1752369037666,1.33719553,117430.0,117420.0,0.002]
[1752369041573,1.3456335,117430.0,117420.0,0.002]
[1752369046080,1.3456335,117430.0,117420.0,0.00014631]
[1752369046376,1.33719553,117430.0,117420.0,0.00014631]
[1752369047578,1.26056632,117430.0,117420.0,0.00014631]
[1752369049682,1.26886461,117430.0,117420.0,0.00014631]
[1752369051583,1.3301101,117430.0,117420.0,0.00014631]
[1752369056080,1.32181181,117430.0,117420.0,0.00014631]
[1752369058490,1.3305174,117430.0,117420.0,0.00014631]
[1752369058684,1.32181181,117430.0,117420.0,0.00014631]
[1752369058995,1.26056632,117430.0,117420.0,0.00014631]
[1752369060497,0.89976632,117430.0,117420.0,0.00014631]
[1752369060796,1.26056632,117430.0,117420.0,0.00014631]
[1752369062499,1.26901596,117430.0,117420.0,0.00014631]
[1752369063904,1.26056632,117430.0,117420.0,0.00014631]
[1752369067899,0.30845286,117430.0,117420.0,0.17041641]
[1752369068101,0.45916959,117430.0,117420.0,0.42481314]
[1752369068296,0.28487286,117430.0,117420.0,0.57552987]
[1752369068492,0.34611546,117430.0,117420.0,0.57552987]
[1752369068698,0.57479286,117430.0,117420.0,0.57552987]
[1752369069305,0.72550959,117430.0,117420.0,0.57552987]
[1752369069500,0.72550959,117430.0,117420.0,0.42481314]
[1752369070200,0.59769286,117430.0,117420.0,0.42481314]